Cogmind - Beta 13 @@@ ROGUE MODE // 2024.05.01 @ 19:41:30 Player: MarKhan Result: Destroyed by Y-45 Defender with Beam Rifle Performance ------------- Evolutions (1) 500 Regions Visited (2) 400 Robots Destroyed (60) 300 Value Destroyed (1201) 1201 Prototype IDs (4) 80 Alien Tech Used (0) 0 Bonus (76) 76 TOTAL SCORE: 2557 Bonus ------- High Alert Combat Kills 76 Cogmind --------- Core Integrity 0/400 Matter 290/300 Energy 250/250 System Corruption 0% Temperature Cool (27) Movement Flying (200) Ox2 Location -9/Materials Parts ------- > --- POWER (1) -------- Ion Engine > --- PROPULSION (4) --- Hover Unit Flight Unit > --- UTILITY (2) ------ Hacking Suite > --- WEAPON (2) ------- Heavy Mace Heavy Mace > --- INVENTORY (5) ---- Machine Analyzer Pulse Rifle Flak Cannon EMP Blaster Heavy Mace Peak State ------------ > --- POWER ------------ Ion Engine > --- PROPULSION ------- Hover Unit Hover Unit Improved Hover Unit > --- UTILITY ---------- Hacking Suite Hacking Suite > --- WEAPON ----------- Heavy Mace Heavy Mace > --- INVENTORY -------- Machine Analyzer Pulse Rifle Flak Cannon EMP Blaster Heavy Mace [Rating: 18] Favorites ----------- Power Ion Engine Engine Ion Engine Propulsion Compact Wheel Wheel Compact Wheel Hover Unit Hover Unit Flight Unit Flight Unit Utility Terrain Scan Processor Device Improved Terrain Scanner Storage Small Storage Unit Processor Terrain Scan Processor Hackware Hacking Suite Weapon Heavy Mace Energy Gun Small Laser Ballistic Gun Assault Rifle Ballistic Cannon Light Cannon Special Weapon Plasma Cutter Impact Weapon Heavy Mace Build | -11 -10 -9 ------- Run | Yrd Mat Mat Slots Evolved 2 | . . 2 Power . | . . . Propulsion 2 | . . 2 Utility . | . . . Weapon . | . . . Parts Attached 44 | 8 10 26 Power 11 | 1 2 8 Engine 11 | 1 2 8 Core . | . . . Reactor . | . . . Propulsion 13 | 2 2 9 Treads . | . . . Leg . | . . . Wheel 5 | 2 . 3 Hover 3 | . . 3 Flight 5 | . 2 3 Utility 7 | 2 1 4 Device 3 | 1 . 2 Storage 1 | 1 . . Processor 1 | . 1 . Hackware 2 | . . 2 Protection . | . . . Artifact . | . . . Weapon 13 | 3 5 5 Energy Gun 4 | . 2 2 Energy Cannon . | . . . Ballistic Gun 3 | 3 . . Ballistic Cannon 1 | . 1 . Launcher . | . . . Special Weapon 1 | . 1 . Impact Weapon 4 | . 1 3 Slashing Weapon . | . . . Piercing Weapon . | . . . Special Melee Weapon . | . . . Unidentified Prototypes 1 | . . 1 Parts Lost 16 | . 2 14 Power 3 | . 1 2 Propulsion 9 | . . 9 Utility 2 | . . 2 Weapon 2 | . 1 1 Highest Loss Streak 4 | . 2 4 To Critical Strikes . | . . . Average Slot Usage (%) 78 | . 94 74 Engine 10 | . 13 9 Wheel 13 | . 22 11 Hover 3 | . . 4 Flight 6 | . 5 6 Device 8 | . 14 7 Processor 10 | . 12 9 Hackware 2 | . . 3 Energy Gun 1 | . 3 . Ballistic Gun 2 | . 15 . Special Weapon 1 | . . 1 Impact Weapon 15 | . 1 18 Naked Turns . | . . . Heaviest Build 14 | 14 14 12 Greatest Support 36 | 32 32 36 Greatest Overweight (x) 3 | . . 3 Average Overweight (x) . | . . . Largest Inventory Capacity 8 | 8 8 5 Average Capacity 5 | 7 5 5 Most Carried 8 | 8 8 5 Average Carried 4 | 5 5 4 Final Capacity 8 | 8 5 5 Final Carried 8 | 8 5 5 Class Distribution -------------------- 57% | Mutant 28% | Scavenger-Mutant 8% | Scavenger-Sprinter 5% | Hacker-Mutant Dominant Class ---------------- Mutant | -10/Materials Mutant | -9/Materials Resources | -11 -10 -9 ----------- Run | Yrd Mat Mat Matter Collected 726 | 300 121 305 Remotely . | . . . Salvage Created 1715 | 85 307 1323 Parts 82 | 8 27 47 Haulers Intercepted 1 | . 1 . Recyclers Shooed 2 | 1 . 1 Parts Field Recycled . | . . . Retrieved Matter . | . . . Parts Self-Destructed . | . . . Prevented . | . . . Kills | -11 -10 -9 ------- Run | Yrd Mat Mat Combat Hostiles Destroyed 34 | . 9 25 Melee 14 | . . 14 Guns 4 | . 4 . Cannons 3 | . 2 1 AOE 3 | . 3 . Classes Destroyed 10 | 2 6 2 Worker 6 | . 2 4 Tunneler 4 | 2 1 1 Hauler 1 | . 1 . Recycler 6 | 1 . 5 Mechanic 1 | . 1 . Operator 2 | . . 2 Watcher 6 | . 2 4 Swarmer 13 | . 3 10 Grunt 13 | . 6 7 Sentry 8 | . . 8 Best Kill Streak 13 | 2 13 12 Combat Bots Only 6 | . 6 6 Max Kills in Single Turn 5 | 1 5 1 Gunslinging . | . . . Exploded 2 | . 2 . Melee 1 | . . 1 Uniques/NPCs Destroyed . | . . . Combat | -11 -10 -9 -------- Run | Yrd Mat Mat Hostile Shots Fired 165 | . 20 145 Missed 48 | . 3 45 Damage Taken 1507 | . 353 1154 Core 529 | . 123 406 Absorbed by Shields . | . . . Regen/Repaired (Parts) 14 | . . 14 Core Remaining (%) 75 | 100 50 . Volleys Fired 28 | 5 23 . Largest 2 | 2 2 . Hottest 60 | 40 60 . Shots Fired 48 | 10 38 . Gun 35 | 10 25 . Cannon 13 | . 13 . Launcher . | . . . Special . | . . . Kinetic 46 | 10 36 . Thermal 2 | . 2 . Explosive . | . . . Electromagnetic . | . . . Robot Hit Streak 7 | 3 7 . Robot Miss Streak 3 | 1 3 . Penetration Max . | . . . Secondary Targets . | . . . Shots Hit Robots 97 | 7 21 69 Core Hits 36 | 5 18 13 Critical Kills 4 | . . 4 Critical Parts Destroyed 17 | . . 17 Critical Strikes 22 | . . 22 Smash 22 | . . 22 Melee Attacks 94 | . . 94 Impact 94 | . . 94 Slashing . | . . . Piercing . | . . . Sneak Attacks 13 | . . 13 Combat Hostiles 2 | . . 2 Follow-up Attacks 7 | . . 7 Damage Inflicted 4196 | 95 982 3119 Guns 257 | 95 162 . Cannons 119 | . 119 . Explosions 701 | . 701 . Melee 3119 | . . 3119 Ramming . | . . . Kinetic 364 | 95 269 . Thermal 254 | . 254 . Explosive 459 | . 459 . Electromagnetic . | . . . Impact 3119 | . . 3119 Slashing . | . . . Piercing . | . . . Highest Corruption . | . . . Average Corruption . | . . . Corruption Purged . | . . . Corruption Blocked . | . . . Overload Shots . | . . . Overflow Damage 1573 | . 184 1389 Projectiles 44 | . . 44 Explosions 184 | . 184 . Melee 1345 | . . 1345 Knockbacks 13 | . . 13 Impact 11 | . . 11 Kinetic . | . . . Secondary 2 | . . 2 Self-Inflicted Damage 112 | . 112 . Shots 1 | . 1 . Rammed . | . . . Targets Rammed . | . . . Kicked . | . . . Crushed . | . . . Highest Temperature 65 | . 65 9 Average Temperature 16 | . 19 5 Received Heat Transfer 537 | . 144 393 Siege Activations . | . . . Robots Corrupted . | . . . Combat Hostiles . | . . . Parts Fried 25 | . . 25 Impact Corruptions 49 | . . 49 Robots Melted . | . . . Combat Hostiles . | . . . Parts Melted 1 | . 1 . Heat Transferred 225 | . 225 . Parts Sabotaged . | . . . Parts Stolen . | . . . Parts Stripped . | . . . Power Chain Reactions . | . . . Alert | -11 -10 -9 ------- Run | Yrd Mat Mat Peak Influence 626 | 15 336 626 Initial 141 | . 9 141 Average 329 | 5 190 389 Maximum Alert Level 2 | . 1 2 Low Security (%) 24 | 100 40 14 Level 1 37 | . 60 35 Level 2 38 | . . 49 Level 3 . | . . . Level 4 . | . . . Level 5 . | . . . High Security . | . . . Max Security . | . . . Squads Dispatched 4 | . . 4 Investigation 3 | . . 3 Extermination . | . . . Reinforcement 1 | . . 1 Assault . | . . . Garrison . | . . . Intercept . | . . . Searches Triggered . | . . . Construction Impeded . | . . . Haulers Reinforced . | . . . Active Scanning Responses . | . . . Cargo Convoy Interrupts . | . . . Stealth | -11 -10 -9 --------- Run | Yrd Mat Mat Distress Signals 4 | . 3 1 Communications Jammed . | . . . Distress Signals . | . . . Times Spotted 59 | . 10 49 Peak Tracking Total 6 | . 6 6 Tactical Retreats 7 | . . 7 Traps | -11 -10 -9 ------- Run | Yrd Mat Mat Traps Triggered . | . . . Indirectly . | . . . Trap Hack Attempts . | . . . Triggered . | . . . Disarmed . | . . . Reprogrammed . | . . . Reused . | . . . Traps Extracted . | . . . Installed . | . . . Triggered . | . . . Machines | -11 -10 -9 ---------- Run | Yrd Mat Mat Machines Disabled 3 | . 3 . Max in Single Turn 1 | . 1 . Machines Repaired . | . . . Machines Dismantled . | . . . Machines Sabotaged . | . . . Overloaded Fab Kills . | . . . Hacking | -11 -10 -9 --------- Run | Yrd Mat Mat Machines Accessed 12 | . . 12 Terminals 9 | . . 9 Fabricators . | . . . Repair Stations 1 | . . 1 Recycling Units 1 | . . 1 Scanalyzers 1 | . . 1 Garrison Access . | . . . Total Hacks 48 | . . 48 Successful 31 | . . 31 Failed 17 | . . 17 Catastrophic 1 | . . 1 Database Lockouts . | . . . Manual 26 | . . 26 Terminals 36 | . . 36 Fabricators . | . . . Repair Stations 2 | . . 2 Recycling Units 2 | . . 2 Scanalyzers 8 | . . 8 Garrison Access . | . . . Terminal Hacks 11 | . . 11 Prototype ID Bank 2 | . . 2 Terminal Index 1 | . . 1 Alert Level 3 | . . 3 Unreport Threat 3 | . . 3 Registered Prototypes 1 | . . 1 Zone Layout 1 | . . 1 Fabricator Hacks . | . . . Repair Station Hacks 2 | . . 2 Scan Component 1 | . . 1 Repair 1 | . . 1 Recycling Unit Hacks 2 | . . 2 Report Inventory 1 | . . 1 Retrieve Components 1 | . . 1 Scanalyzer 8 | . . 8 Insert Component 3 | . . 3 Analyze 5 | . . 5 Garrison Access Hacks . | . . . Unauthorized Hacks 8 | . . 8 Terminals 8 | . . 8 Assimilate 2 | . . 2 Botnet 6 | . . 6 Fabricators . | . . . Repair Stations . | . . . Recycling Units . | . . . Scanalyzers . | . . . Garrison Access . | . . . Data Cores Recovered . | . . . Used . | . . . Hacking Detections 11 | . . 11 Full Trace Events 4 | . . 4 Feedback Events . | . . . Feedback Blocked . | . . . Robot Schematics Acquired . | . . . Robots Built . | . . . Authchips . | . . . Time . | . . . Total Robot Build Rating . | . . . Part Schematics Acquired 3 | . . 3 Parts Built . | . . . Authchips . | . . . Time . | . . . Total Part Build Rating . | . . . Parts Repaired 1 | . . 1 Time 38 | . . 38 Parts Recycled . | . . . Recycled Matter . | . . . Retrieved Matter . | . . . Retrieved Components 6 | . . 6 Parts Scanalyzed 3 | . . 3 Part Schematics Acquired 3 | . . 3 Parts Damaged . | . . . Bothacking | -11 -10 -9 ------------ Run | Yrd Mat Mat Used RIF Installer . | . . . Robots Hacked . | . . . Non-combat . | . . . Combat . | . . . Robot Hacks Applied . | . . . Relay Couplers Released . | . . . Fabnet Peak Effective % . | . . . Robots Rewired . | . . . Allies Hacked . | . . . Hacks Repelled . | . . . Allies | -11 -10 -9 -------- Run | Yrd Mat Mat Total Allies 1 | . . 1 Largest Group 1 | . . 1 Highest-Rated Group 10 | . . 10 Highest-Rated Ally 10 | . . 10 Total Orders . | . . . Ally Attacks . | . . . Total Damage . | . . . Kills . | . . . Allies Corrupted . | . . . Allies Melted . | . . . Intel | -11 -10 -9 ------- Run | Yrd Mat Mat Robot Analysis Total . | . . . Derelict Logs Recovered . | . . . Drone Launches . | . . . Drone Recoveries . | . . . Exploration | -11 -10 -9 ------------- Run | Yrd Mat Mat Turns Passed 1313 | 91 220 1002 Spaces Moved 1248 | 55 151 1042 Core 65 | 2 . 63 Treads . | . . . Legs . | . . . Wheels 552 | 53 121 378 Hover 249 | . . 249 Flight 382 | . 30 352 Fastest Speed 31 | 50 37 31 Average Speed 65 | 98 87 60 Slowest Speed 200 | 100 100 200 Overloaded Moves . | . . . Propulsion Burnouts . | . . . Robots Hopped . | . . . Cave-ins Triggered . | . . . Exploration Rate (%) 33 | 3 37 60 Regions Visited 2 Branch Regions . Pre-discovered Areas . | . . . Known Exits Taken . | . . . Unknown Exits Taken 2 | 1 1 . Scrap Searched . | . . . Spaces Dug 2 | . . 2 Terrain Destroyed 44 | . 42 2 Melee 2 | . . 2 Projectile . | . . . AOE 42 | . 42 . Terrain Rammed . | . . . Walls Destroyed . | . . . Machines Disabled . | . . . Actions | -11 -10 -9 --------- Run | Yrd Mat Mat Total 1544 | 80 202 1262 Wait 89 | . . 89 Move 1246 | 54 150 1042 Hop . | . . . Pick Up 24 | 10 6 8 Fast Attach 27 | 7 6 14 Attach 5 | . . 5 Detach 2 | . 1 1 Swap 12 | 1 4 7 Drop 26 | 3 12 11 Fire 28 | 5 23 . Melee 83 | . . 83 Ram . | . . . Kick . | . . . Crush . | . . . Escape Stasis . | . . . Rewire . | . . . Trap . | . . . Miscellaneous 2 | . . 2 Route ------- -11/Scrapyard -10/Materials -9/Materials (discovered 3 exits: [*Mat x2] / [*Min]) History --------- Turn | Location | Event 20 | -11/Scrapyard | Discovered new exit (range 15) 92 | -11/Scrapyard | Entered Materials 295 | -10/Materials | Discovered new exit (range 15) 312 | -10/Materials | Entered another Materials area 312 | -9/Materials | Evolved 2 slots: Propulsion x2 381 | -9/Materials | Repaired Imp. Terrain Scanner 422 | -9/Materials | Discovered new exit (range 5) 798 | -9/Materials | Build established: Mutant 852 | -9/Materials | Core integrity fell below 50% 995 | -9/Materials | Discovered new exit (range 8) 1075 | -9/Materials | Core integrity fell below 20% 1102 | -9/Materials | Lost 4 parts (1p3n) 1118 | -9/Materials | Discovered new exit (range 15) 1314 | -9/Materials | Destroyed by Y-45 Defender with Beam Rifle Last Messages --------------- 01290_ Lgt. Ion Engine fried. 01290_ Lgt. Assault Rifle fried. 01290_ S-10 Pest destroyed. 01295_ Critical hit (Burn: +37). 01295_ S-10 Pest suffers critical hit (Smash). 01295_ Destroyed Flight Unit. 01295_ S-10 Pest system corrupted by crushing effect. 01295_ S-10 Pest knocked back. 01298_ S-10 Pest misfires. 01298_ Hover Unit destroyed. 01299_ Sneak attack on R-06 Scavenger. 01299_ Destroyed Lgt. Ion Engine. 01299_ R-06 Scavenger system corrupted by crushing effect. 01299_ Com. Wheel fried. 01299_ R-06 Scavenger destroyed. 01299_ Imp. Hover Unit destroyed. 01304_ Acquired Flight Unit. 01314_ Critical hit (Burn: +37). Map ----- +----------------------------------------------------+ | | | | | | | | | | | | | | | | | | | ?????????????????????????????????????????????????? | | ?????????????????????????????????????????????????? | | ?????????????????????????????????????????????????? | | ?????????????????????????????????????????????????? | | ?????????????????????????????????????????????????? | | ?????????????????????????????????????????????????? | | ???????????????????????????????????????????#####?? | | ??????????????????###?????????????????????##"""##? | | ???????????????#### ##########?#?????????##"!!!"## | | ???????????????# # #?????????#"" ""# | | ???????????????# = # #### #?# # | | ???????????????# =!* // =+% #?# < # | | ???????????????# = / [# #?# # | | ???????????????# "Y"= *[ # ### #?# # | | ???????????????# """ [%= # #?????##??# #? | | ???????????????###########Y### #?????????## ### | | ?????????????????# ]#@*T #??????????# ## | | ?????????????????# #=! #??????????# ##" | | ?????????????????#""" ! + #??????????# ##" | | ?????????????????#""" # #?????????## ##" | | ?????????????????#""" # """ #?????????# # | | ?????????????????# ?# """ #?????????# # | | ?????????????????######?# """ #?????????# %+ | | ???##################???# """ #?????????# # | | ???#! # #???# % #?????????# # | | ???# !! =#! ##### #?????????## ## | | ???# ! "" =+% [[ = #??????????# ## | | ???# """*#[ [ #??????????# ## | | ???# S" # ######"T"# #??????????# ## | | ???# # #????##### #?????????## % ### | | ???#############+#######?????# ########### #? | | ?????????# ! #??#### #? | | ?????????# "" #??# #? | | ?????????# T" #??# ##### ^ / ## | | ?????????# """ """ "" #??# ?#####+######## #? | | ?????????# """ """ #??? ?# #??### ###? | | ?????????# """ """ #??? ?# #???##%##?# | | ?????????# #?## ## #?####+#### | | ?????????# """ """ """ #??# ## """"""" ##?# # | | ?????????# """ """ """ ##?# ## """"""" #??# # | | ?????????# """ """ """ #??# ## """"""" #?## """" # | +----------------------------------------------------+ Best States ------------- Heat Dissipation 28 Energy Generation 10 Energy Capacity 250 Matter Stores 300 Matter Capacity 300 Sight Range 16 Terrain Scan Range 16 Terrain Scan Density 85 Evasion (%) 63 Offensive Hacking 20 Item Schematics ----------------- Hvy. Mace | -9/Materials | Scanalyzed Machine Analyzer | -9/Materials | Scanalyzed Flak Cannon | -9/Materials | Scanalyzed Robot Schematics ------------------ None Fabricated ------------ Nothing Alien Tech Used ----------------- None Achievements -------------- None Challenges ------------ None Game ------ Seed DeuteriumStasisSplitter Manual? 0 Play Time 00:25:43 Cumulative 16.4 hours Start 2024.05.01 @ 19:15:33 End 2024.05.01 @ 19:41:30 Sessions 1 Manual Loads 0 Difficulty Rogue Special Mode None Game No. 19 Rogue 19 Adventurer 0 Explorer 0 Win Type - Total 0 Types 0/0/0/0/0/0/0/0/0 Lore% 10 Gallery% 18 Achievement% 16 Wizard Run 0 Options --------- Layout 1 ASCII 0 Keyboard 1 Movement Arrows Keybinds 0 Fullscreen 2 Font 24/Smallcaps Map View 50x35 Zoom Use 0% Tactical HUD 1 Map Filters NONE Filters NONE Steam 1 RUN: cb56b89e-96fc-4147-8c07-4b5a7cbd4c3a